[Event "Late-Titled-Tuesday-Blitz-October-24-2023"]
[Site "Chess.com"]
[Date "2023.10.24"]
[Round "10"]
[White "WPWPWP-2015"]
[Black "DvaHrasta"]
[Result "1-0"]
[WhiteElo "2602"]
[BlackElo "2498"]
[TimeControl "180+1"]
[EndTime "15:56:04 PDT"]
[Termination "WPWPWP-2015 won on time"]

1. e4 {[%clk 0:03:00.9]} 1... c6 {[%clk 0:02:59.2]} 2. d4 {[%clk 0:02:59.5]}
2... d5 {[%clk 0:02:59.3]} 3. e5 {[%clk 0:03:00.4]} 3... c5 {[%clk 0:02:59.1]}
4. Nf3 {[%clk 0:02:58.3]} 4... Nc6 {[%clk 0:02:56.9]} 5. c4 {[%clk 0:02:56.8]}
5... Bg4 {[%clk 0:02:54.3]} 6. cxd5 {[%clk 0:02:55.5]} 6... Bxf3 {[%clk
0:02:52.4]} 7. Qxf3 {[%clk 0:02:42.3]} 7... Nxd4 {[%clk 0:02:52.2]} 8. Qe4
{[%clk 0:02:36.1]} 8... f5 {[%clk 0:02:50.5]} 9. Qf4 {[%clk 0:02:09]} 9... Qxd5
{[%clk 0:02:41.1]} 10. Bd3 {[%clk 0:02:05.3]} 10... Qxg2 {[%clk 0:02:30.6]} 11.
Rf1 {[%clk 0:02:02.6]} 11... g5 {[%clk 0:02:27.1]} 12. Qe3 {[%clk 0:01:55.2]}
12... Qxh2 {[%clk 0:02:11.6]} 13. Nc3 {[%clk 0:01:44.3]} 13... Qxe5 {[%clk
0:02:05.1]} 14. Qxe5 {[%clk 0:01:38.4]} 14... Nf3+ {[%clk 0:02:04.9]} 15. Ke2
{[%clk 0:01:38.1]} 15... Nxe5 {[%clk 0:02:04.9]} 16. Bxf5 {[%clk 0:01:33.1]}
16... Nh6 {[%clk 0:01:48.9]} 17. Be6 {[%clk 0:01:30.5]} 17... Rd8 {[%clk
0:01:33.7]} 18. Nb5 {[%clk 0:01:20.7]} 18... Rd6 {[%clk 0:01:19.2]} 19. Nxd6+
{[%clk 0:01:17.2]} 19... exd6 {[%clk 0:01:19.4]} 20. Bxg5 {[%clk 0:01:16.6]}
20... Nhf7 {[%clk 0:01:11.6]} 21. Bf6 {[%clk 0:01:15.4]} 21... Rg8 {[%clk
0:01:10.6]} 22. Bxe5 {[%clk 0:01:08.5]} 22... dxe5 {[%clk 0:01:10.6]} 23. Rg1
{[%clk 0:01:06.5]} 23... Rg6 {[%clk 0:00:46.5]} 24. Rxg6 {[%clk 0:00:54.5]}
24... hxg6 {[%clk 0:00:46]} 25. Rg1 {[%clk 0:00:52.7]} 25... g5 {[%clk
0:00:41.6]} 26. Bxf7+ {[%clk 0:00:51.1]} 26... Kxf7 {[%clk 0:00:41.8]} 27. Rxg5
{[%clk 0:00:51.2]} 27... Bg7 {[%clk 0:00:34.6]} 28. b3 {[%clk 0:00:49.7]} 28...
b5 {[%clk 0:00:31.7]} 29. Kd3 {[%clk 0:00:48.3]} 29... Bf6 {[%clk 0:00:28.2]}
30. Rh5 {[%clk 0:00:45.3]} 30... Ke6 {[%clk 0:00:28.3]} 31. Ke4 {[%clk
0:00:42.2]} 31... c4 {[%clk 0:00:25.8]} 32. bxc4 {[%clk 0:00:41.3]} 32... bxc4
{[%clk 0:00:24.5]} 33. Rh3 {[%clk 0:00:37.2]} 33... Be7 {[%clk 0:00:19.6]} 34.
Rc3 {[%clk 0:00:35.9]} 34... Bc5 {[%clk 0:00:18]} 35. f3 {[%clk 0:00:34.2]}
35... Kd6 {[%clk 0:00:14.9]} 36. Rxc4 {[%clk 0:00:34.2]} 36... Bb6 {[%clk
0:00:15.2]} 37. a4 {[%clk 0:00:31.8]} 37... Bg1 {[%clk 0:00:14.2]} 38. Rc8
{[%clk 0:00:30.7]} 38... Bf2 {[%clk 0:00:13.1]} 39. Re8 {[%clk 0:00:29.9]} 39...
Kc5 {[%clk 0:00:10.2]} 40. Rxe5+ {[%clk 0:00:24.5]} 40... Kb4 {[%clk 0:00:08.4]}
41. a5 {[%clk 0:00:23.3]} 41... a6 {[%clk 0:00:07.6]} 42. f4 {[%clk 0:00:21.8]}
42... Be1 {[%clk 0:00:02.7]} 43. f5 {[%clk 0:00:21.7]} 43... Ka4 {[%clk
0:00:02.1]} 44. f6 {[%clk 0:00:21.6]} 1-0

[Event "Late-Titled-Tuesday-Blitz-October-24-2023"]
[Site "Chess.com"]
[Date "2023.10.24"]
[Round "10"]
[White "C_K_G"]
[Black "expii"]
[Result "0-1"]
[WhiteElo "1934"]
[BlackElo "2215"]
[TimeControl "180+1"]
[EndTime "15:56:05 PDT"]
[Termination "expii won on time"]

1. e4 {[%clk 0:03:00.9]} 1... c5 {[%clk 0:02:56.8]} 2. Nf3 {[%clk 0:03:01.8]}
2... d6 {[%clk 0:02:57.1]} 3. d4 {[%clk 0:03:02.3]} 3... cxd4 {[%clk 0:02:58]}
4. Nxd4 {[%clk 0:03:02.7]} 4... Nf6 {[%clk 0:02:50.8]} 5. Nc3 {[%clk 0:03:03.1]}
5... g6 {[%clk 0:02:45.7]} 6. f4 {[%clk 0:02:58.7]} 6... Nc6 {[%clk 0:02:45.2]}
7. Bb5 {[%clk 0:02:57.3]} 7... Bd7 {[%clk 0:02:40.6]} 8. O-O {[%clk 0:02:46]}
8... Bg7 {[%clk 0:02:19.1]} 9. Bxc6 {[%clk 0:02:31.1]} 9... bxc6 {[%clk
0:02:17.8]} 10. e5 {[%clk 0:02:31.1]} 10... Nd5 {[%clk 0:02:05.2]} 11. exd6
{[%clk 0:02:18.5]} 11... Nxc3 {[%clk 0:02:02.5]} 12. bxc3 {[%clk 0:02:15.3]}
12... exd6 {[%clk 0:01:59.9]} 13. Re1+ {[%clk 0:02:14.3]} 13... Kf8 {[%clk
0:01:59.3]} 14. Ba3 {[%clk 0:02:12.4]} 14... c5 {[%clk 0:01:56.5]} 15. Nf3
{[%clk 0:01:54.6]} 15... Be6 {[%clk 0:01:48]} 16. Re3 {[%clk 0:01:37.6]} 16...
Qc7 {[%clk 0:01:44.6]} 17. Ng5 {[%clk 0:01:32]} 17... Re8 {[%clk 0:01:35.3]} 18.
Nxe6+ {[%clk 0:01:25.4]} 18... fxe6 {[%clk 0:01:36.2]} 19. Qg4 {[%clk
0:01:19.7]} 19... Kf7 {[%clk 0:01:34.1]} 20. Rae1 {[%clk 0:01:17.1]} 20... Qd7
{[%clk 0:01:27.6]} 21. h4 {[%clk 0:00:57]} 21... h5 {[%clk 0:01:22.2]} 22. Qf3
{[%clk 0:00:45.2]} 22... Bf6 {[%clk 0:01:17.6]} 23. g3 {[%clk 0:00:44.2]} 23...
Re7 {[%clk 0:01:15.8]} 24. Kg2 {[%clk 0:00:37.4]} 24... Rc8 {[%clk 0:01:11.8]}
25. c4 {[%clk 0:00:33.2]} 25... Qc6 {[%clk 0:01:10.6]} 26. Re4 {[%clk 0:00:30]}
26... Qa4 {[%clk 0:01:04.9]} 27. R1e2 {[%clk 0:00:22.8]} 27... Rce8 {[%clk
0:01:02.5]} 28. Bc1 {[%clk 0:00:18.1]} 28... Qxa2 {[%clk 0:00:58.3]} 29. Qd3
{[%clk 0:00:16]} 29... Qa1 {[%clk 0:00:51.6]} 30. Be3 {[%clk 0:00:14.6]} 30...
Qc3 {[%clk 0:00:43.4]} 31. Qd1 {[%clk 0:00:11.8]} 31... Rd8 {[%clk 0:00:26.1]}
32. Bd2 {[%clk 0:00:11.1]} 32... Qa1 {[%clk 0:00:22.3]} 33. Bc1 {[%clk
0:00:10.1]} 33... Qa4 {[%clk 0:00:18.2]} 34. f5 {[%clk 0:00:07.5]} 34... exf5
{[%clk 0:00:15.4]} 35. Rxe7+ {[%clk 0:00:07]} 35... Bxe7 {[%clk 0:00:16.3]} 36.
Rxe7+ {[%clk 0:00:06.1]} 36... Kxe7 {[%clk 0:00:16.4]} 37. Bg5+ {[%clk
0:00:06.4]} 37... Kd7 {[%clk 0:00:14.6]} 38. Bxd8 {[%clk 0:00:06.5]} 38... Qc6+
{[%clk 0:00:15.3]} 39. Kh2 {[%clk 0:00:02.3]} 39... Kxd8 {[%clk 0:00:16.2]} 40.
Qd3 {[%clk 0:00:02.2]} 40... Kc7 {[%clk 0:00:16]} 0-1

[Event "Late-Titled-Tuesday-Blitz-October-24-2023"]
[Site "Chess.com"]
[Date "2023.10.24"]
[Round "10"]
[White "MaxLeto"]
[Black "PushingpawnsNYC"]
[Result "0-1"]
[WhiteElo "2541"]
[BlackElo "2375"]
[TimeControl "180+1"]
[EndTime "15:56:09 PDT"]
[Termination "PushingpawnsNYC won on time"]

1. g4 {[%clk 0:03:00.9]} 1... d5 {[%clk 0:02:56.9]} 2. Bg2 {[%clk 0:03:01]} 2...
c5 {[%clk 0:02:56.9]} 3. h3 {[%clk 0:03:00.6]} 3... Nc6 {[%clk 0:02:57.3]} 4. c4
{[%clk 0:02:59.5]} 4... d4 {[%clk 0:02:55.3]} 5. d3 {[%clk 0:02:56.8]} 5... e5
{[%clk 0:02:55]} 6. Nd2 {[%clk 0:02:47.3]} 6... g6 {[%clk 0:02:48.9]} 7. Ne4
{[%clk 0:02:31.6]} 7... h6 {[%clk 0:02:39.9]} 8. Nf3 {[%clk 0:02:17.2]} 8... Nf6
{[%clk 0:02:38.7]} 9. Nxf6+ {[%clk 0:02:10.8]} 9... Qxf6 {[%clk 0:02:38.3]} 10.
Nd2 {[%clk 0:02:11.7]} 10... Bg7 {[%clk 0:02:33.8]} 11. Ne4 {[%clk 0:02:11.2]}
11... Qe7 {[%clk 0:02:34.4]} 12. Qa4 {[%clk 0:01:53.1]} 12... O-O {[%clk
0:02:30.4]} 13. Qb5 {[%clk 0:01:52.6]} 13... Nb4 {[%clk 0:02:24.8]} 14. Kd1
{[%clk 0:01:45.4]} 14... b6 {[%clk 0:01:51.3]} 15. a3 {[%clk 0:01:21.9]} 15...
Bd7 {[%clk 0:01:44.8]} 16. Qxd7 {[%clk 0:00:56.4]} 16... Qxd7 {[%clk 0:01:42.1]}
17. axb4 {[%clk 0:00:57.3]} 17... cxb4 {[%clk 0:01:42]} 18. Bd2 {[%clk
0:00:32.6]} 18... a5 {[%clk 0:01:33.7]} 19. Ng3 {[%clk 0:00:32.8]} 19... Rad8
{[%clk 0:01:28.3]} 20. Bd5 {[%clk 0:00:32.8]} 20... Kh7 {[%clk 0:01:27.8]} 21.
f3 {[%clk 0:00:28.6]} 21... Qe7 {[%clk 0:01:23.6]} 22. h4 {[%clk 0:00:22.7]}
22... f5 {[%clk 0:01:16.2]} 23. h5 {[%clk 0:00:20.8]} 23... g5 {[%clk
0:00:58.3]} 24. Nxf5 {[%clk 0:00:18.3]} 24... Qc5 {[%clk 0:00:53.4]} 25. Be4
{[%clk 0:00:17.6]} 25... Kh8 {[%clk 0:00:52.8]} 26. b3 {[%clk 0:00:17]} 26...
Rf7 {[%clk 0:00:46.3]} 27. Ke1 {[%clk 0:00:16.8]} 27... Ra7 {[%clk 0:00:46.2]}
28. Kf2 {[%clk 0:00:09.6]} 28... b5 {[%clk 0:00:45.8]} 29. Rhc1 {[%clk
0:00:09.1]} 29... a4 {[%clk 0:00:43.7]} 30. cxb5 {[%clk 0:00:07]} 30... Qxb5
{[%clk 0:00:44]} 31. Rc4 {[%clk 0:00:05.2]} 31... Bf8 {[%clk 0:00:37.9]} 32.
bxa4 {[%clk 0:00:02.4]} 32... Rxa4 {[%clk 0:00:33.1]} 33. Rb1 {[%clk 0:00:03]}
33... b3 {[%clk 0:00:31.1]} 34. Rc6 {[%clk 0:00:03.1]} 34... b2 {[%clk
0:00:26.4]} 35. Nxh6 {[%clk 0:00:03.4]} 35... Ra1 {[%clk 0:00:24.3]} 36. Nf7+
{[%clk 0:00:03.4]} 36... Kg7 {[%clk 0:00:23.2]} 37. Nxg5 {[%clk 0:00:03.2]}
37... Qxc6 {[%clk 0:00:19.7]} 38. Bxc6 {[%clk 0:00:02]} 38... Rxb1 {[%clk
0:00:19.8]} 39. Ne6+ {[%clk 0:00:02.6]} 39... Kf7 {[%clk 0:00:18.2]} 40. Nxd8+
{[%clk 0:00:02.9]} 40... Ke7 {[%clk 0:00:18.6]} 41. Nb7 {[%clk 0:00:01.5]} 41...
Rf1+ {[%clk 0:00:17.6]} 42. Kxf1 {[%clk 0:00:01.4]} 42... b1=Q+ {[%clk
0:00:18.1]} 43. Kf2 {[%clk 0:00:02]} 43... Qc2 {[%clk 0:00:18.1]} 44. Be1 {[%clk
0:00:01.6]} 44... Qxc6 {[%clk 0:00:17.5]} 45. Na5 {[%clk 0:00:01.4]} 45... Qc1
{[%clk 0:00:16.7]} 0-1

[Event "Late-Titled-Tuesday-Blitz-October-24-2023"]
[Site "Chess.com"]
[Date "2023.10.24"]
[Round "10"]
[White "venturov"]
[Black "AsselLesbekova"]
[Result "0-1"]
[WhiteElo "2472"]
[BlackElo "2314"]
[TimeControl "180+1"]
[EndTime "15:56:09 PDT"]
[Termination "AsselLesbekova won by checkmate"]

1. e4 {[%clk 0:03:00.9]} 1... e5 {[%clk 0:02:59.4]} 2. Bc4 {[%clk 0:03:00.2]}
2... Nf6 {[%clk 0:02:59.1]} 3. Nc3 {[%clk 0:03:00.1]} 3... Nxe4 {[%clk
0:02:57.7]} 4. Qh5 {[%clk 0:03:00]} 4... Nd6 {[%clk 0:02:50.9]} 5. Bb3 {[%clk
0:03:00.1]} 5... Nc6 {[%clk 0:02:45]} 6. Nb5 {[%clk 0:03:00.1]} 6... g6 {[%clk
0:02:35.7]} 7. Qf3 {[%clk 0:03:00.2]} 7... f5 {[%clk 0:02:16.6]} 8. Qd5 {[%clk
0:03:00.2]} 8... Qe7 {[%clk 0:02:01]} 9. Nxc7+ {[%clk 0:02:59.9]} 9... Kd8
{[%clk 0:02:01.4]} 10. Nxa8 {[%clk 0:03:00.8]} 10... b6 {[%clk 0:01:56.2]} 11.
d3 {[%clk 0:02:36.1]} 11... Bb7 {[%clk 0:01:52.8]} 12. Nf3 {[%clk 0:02:21.4]}
12... Nd4 {[%clk 0:01:38.9]} 13. Bg5 {[%clk 0:01:09.3]} 13... Nxf3+ {[%clk
0:01:31.3]} 14. Qxf3 {[%clk 0:01:09.5]} 14... Qxg5 {[%clk 0:01:19.7]} 15. Bd5
{[%clk 0:01:07.4]} 15... e4 {[%clk 0:01:13]} 16. dxe4 {[%clk 0:01:07.2]} 16...
fxe4 {[%clk 0:01:10.8]} 17. Qb3 {[%clk 0:01:05.3]} 17... Qxd5 {[%clk 0:01:08.1]}
18. Qc3 {[%clk 0:00:48]} 18... Rg8 {[%clk 0:00:53.1]} 19. Rd1 {[%clk 0:00:31.2]}
19... Qc6 {[%clk 0:00:45.6]} 20. Qb3 {[%clk 0:00:17.9]} 20... Rg7 {[%clk
0:00:34.2]} 21. Qe3 {[%clk 0:00:07]} 21... Bxa8 {[%clk 0:00:19.1]} 22. O-O
{[%clk 0:00:06.5]} 22... Nf5 {[%clk 0:00:16.9]} 23. Qh3 {[%clk 0:00:03.7]} 23...
Bc5 {[%clk 0:00:11.7]} 24. Kh1 {[%clk 0:00:02.1]} 24... e3 {[%clk 0:00:11.3]}
25. fxe3 {[%clk 0:00:02.6]} 25... Nxe3 {[%clk 0:00:11.1]} 26. Rfe1 {[%clk
0:00:01.5]} 26... Qxg2+ {[%clk 0:00:10.4]} 27. Qxg2 {[%clk 0:00:01.9]} 27...
Nxg2 {[%clk 0:00:10.6]} 28. Re3 {[%clk 0:00:01.1]} 28... Bxe3 {[%clk 0:00:08.5]}
29. h3 {[%clk 0:00:01.6]} 29... Nh4+ {[%clk 0:00:07.8]} 30. Kh2 {[%clk
0:00:02.5]} 30... Bf4+ {[%clk 0:00:06.5]} 31. Kg1 {[%clk 0:00:02.4]} 31... Nf3+
{[%clk 0:00:07.4]} 32. Kf2 {[%clk 0:00:02.7]} 32... g5 {[%clk 0:00:07.3]} 33.
Rd4 {[%clk 0:00:02.1]} 33... h5 {[%clk 0:00:07.2]} 34. Ra4 {[%clk 0:00:02.8]}
34... a5 {[%clk 0:00:06.8]} 35. b4 {[%clk 0:00:03.4]} 35... Re7 {[%clk
0:00:07.2]} 36. bxa5 {[%clk 0:00:03.6]} 36... bxa5 {[%clk 0:00:08.1]} 37. Rxa5
{[%clk 0:00:03.9]} 37... Bc6 {[%clk 0:00:09]} 38. a4 {[%clk 0:00:02.9]} 38...
Nd4 {[%clk 0:00:09.6]} 39. Ra7 {[%clk 0:00:02.6]} 39... Re2+ {[%clk 0:00:10.5]}
40. Kf1 {[%clk 0:00:02.4]} 40... Bg2+ {[%clk 0:00:09.9]} 41. Kg1 {[%clk
0:00:02.1]} 41... Nf3# {[%clk 0:00:10.5]} 0-1

[Event "Late-Titled-Tuesday-Blitz-October-24-2023"]
[Site "Chess.com"]
[Date "2023.10.24"]
[Round "10"]
[White "Vamostodorecto"]
[Black "Karttunen"]
[Result "1/2-1/2"]
[WhiteElo "2460"]
[BlackElo "2570"]
[TimeControl "180+1"]
[EndTime "15:56:12 PDT"]
[Termination "Game drawn by repetition"]

1. e4 {[%clk 0:02:51.2]} 1... e5 {[%clk 0:02:58.9]} 2. Bc4 {[%clk 0:02:47.9]}
2... Nf6 {[%clk 0:02:58.2]} 3. d4 {[%clk 0:02:46.1]} 3... exd4 {[%clk 0:02:53]}
4. Nf3 {[%clk 0:02:34.2]} 4... d5 {[%clk 0:02:50.1]} 5. exd5 {[%clk 0:02:29.1]}
5... Bb4+ {[%clk 0:02:43.4]} 6. c3 {[%clk 0:02:27.2]} 6... dxc3 {[%clk
0:02:42.9]} 7. bxc3 {[%clk 0:02:27.8]} 7... Be7 {[%clk 0:02:37.5]} 8. O-O {[%clk
0:02:24.5]} 8... O-O {[%clk 0:02:36.9]} 9. Re1 {[%clk 0:02:22.8]} 9... Bf5
{[%clk 0:02:27]} 10. Nd4 {[%clk 0:02:19.1]} 10... Bg4 {[%clk 0:02:14.5]} 11. f3
{[%clk 0:02:12.7]} 11... Bc8 {[%clk 0:02:01.4]} 12. Bg5 {[%clk 0:01:42.8]} 12...
Nxd5 {[%clk 0:01:46.6]} 13. Bxd5 {[%clk 0:00:38.1]} 13... Bxg5 {[%clk
0:01:45.8]} 14. Bb3 {[%clk 0:00:36]} 14... c5 {[%clk 0:01:31.3]} 15. Nb5 {[%clk
0:00:27.2]} 15... Qxd1 {[%clk 0:01:26.9]} 16. Rxd1 {[%clk 0:00:28.1]} 16... Nc6
{[%clk 0:01:21.6]} 17. Nc7 {[%clk 0:00:26.2]} 17... Rb8 {[%clk 0:01:20.6]} 18.
Nd2 {[%clk 0:00:26.9]} 18... b5 {[%clk 0:01:09.1]} 19. Ne4 {[%clk 0:00:25.9]}
19... Be3+ {[%clk 0:01:08.9]} 20. Kh1 {[%clk 0:00:25.6]} 20... c4 {[%clk
0:01:09]} 21. Bc2 {[%clk 0:00:26.3]} 21... f5 {[%clk 0:00:35.8]} 22. Nd6 {[%clk
0:00:26.2]} 22... a6 {[%clk 0:00:31.2]} 23. a4 {[%clk 0:00:26.1]} 23... b4
{[%clk 0:00:29.3]} 24. Nxc4 {[%clk 0:00:25.3]} 24... Bf4 {[%clk 0:00:29.1]} 25.
Nd5 {[%clk 0:00:24.6]} 25... Bg5 {[%clk 0:00:23.6]} 26. cxb4 {[%clk 0:00:24.5]}
26... Nxb4 {[%clk 0:00:23.9]} 27. Nxb4 {[%clk 0:00:23.3]} 27... Rxb4 {[%clk
0:00:24]} 28. Nd6 {[%clk 0:00:21]} 28... Be6 {[%clk 0:00:24.2]} 29. Re1 {[%clk
0:00:19.7]} 29... Rf6 {[%clk 0:00:17.4]} 30. Rab1 {[%clk 0:00:19.6]} 30... Bd2
{[%clk 0:00:15.3]} 31. Rxb4 {[%clk 0:00:16.9]} 31... Bxb4 {[%clk 0:00:16.2]} 32.
Rxe6 {[%clk 0:00:14.7]} 32... Rxe6 {[%clk 0:00:16.2]} 33. Bb3 {[%clk 0:00:14.3]}
33... Bxd6 {[%clk 0:00:16.5]} 34. Bxe6+ {[%clk 0:00:14.6]} 34... Kf8 {[%clk
0:00:16.9]} 35. Bxf5 {[%clk 0:00:15.5]} 35... h6 {[%clk 0:00:17.1]} 36. Bd3
{[%clk 0:00:14.7]} 36... a5 {[%clk 0:00:17.2]} 37. Bb5 {[%clk 0:00:15.1]} 37...
Bb4 {[%clk 0:00:17.5]} 38. g3 {[%clk 0:00:15.3]} 38... Ke7 {[%clk 0:00:18]} 39.
Kg2 {[%clk 0:00:15.9]} 39... Kf6 {[%clk 0:00:18.6]} 40. f4 {[%clk 0:00:16.1]}
40... g5 {[%clk 0:00:19]} 41. Kf3 {[%clk 0:00:14.4]} 41... gxf4 {[%clk
0:00:19.5]} 42. Kxf4 {[%clk 0:00:14.2]} 42... Bd6+ {[%clk 0:00:20.3]} 43. Kg4
{[%clk 0:00:14.1]} 43... Be5 {[%clk 0:00:19.7]} 44. Bd3 {[%clk 0:00:14.1]} 44...
Bd6 {[%clk 0:00:19.9]} 45. h4 {[%clk 0:00:14.3]} 45... Be5 {[%clk 0:00:19.9]}
46. Kf3 {[%clk 0:00:14.6]} 46... Bc3 {[%clk 0:00:19.8]} 47. g4 {[%clk 0:00:15]}
47... Bd2 {[%clk 0:00:20.1]} 48. Kg3 {[%clk 0:00:14.4]} 48... Bc1 {[%clk
0:00:20.3]} 49. Kf3 {[%clk 0:00:14.2]} 49... Bd2 {[%clk 0:00:20.5]} 50. Bb5
{[%clk 0:00:14.7]} 50... Be1 {[%clk 0:00:20.6]} 51. h5 {[%clk 0:00:13.4]} 51...
Kg5 {[%clk 0:00:21]} 52. Bd7 {[%clk 0:00:12.8]} 52... Bb4 {[%clk 0:00:21.9]} 53.
Bf5 {[%clk 0:00:12.5]} 53... Bc3 {[%clk 0:00:22.8]} 54. Bd7 {[%clk 0:00:13.1]}
54... Bb4 {[%clk 0:00:23.7]} 55. Bf5 {[%clk 0:00:13.7]} 55... Bc3 {[%clk
0:00:24.2]} 56. Bd7 {[%clk 0:00:14.4]} 56... Bb4 {[%clk 0:00:25.1]} 1/2-1/2

[Event "Late-Titled-Tuesday-Blitz-October-24-2023"]
[Site "Chess.com"]
[Date "2023.10.24"]
[Round "10"]
[White "eljanov"]
[Black "Bauman_Guy"]
[Result "1-0"]
[WhiteElo "2840"]
[BlackElo "2914"]
[TimeControl "180+1"]
[EndTime "15:56:15 PDT"]
[Termination "eljanov won by resignation"]

1. d4 {[%clk 0:03:00.9]} 1... Nf6 {[%clk 0:03:00]} 2. Bf4 {[%clk 0:03:01.1]}
2... b6 {[%clk 0:02:59.6]} 3. Nf3 {[%clk 0:03:00.2]} 3... Bb7 {[%clk 0:02:59.8]}
4. e3 {[%clk 0:03:00.5]} 4... g6 {[%clk 0:02:59.8]} 5. c4 {[%clk 0:02:53.4]}
5... Bg7 {[%clk 0:02:59.9]} 6. Nc3 {[%clk 0:02:53.3]} 6... d6 {[%clk 0:02:59.2]}
7. h3 {[%clk 0:02:53.1]} 7... O-O {[%clk 0:02:58.4]} 8. Be2 {[%clk 0:02:52.6]}
8... Nfd7 {[%clk 0:02:57.4]} 9. Bg5 {[%clk 0:02:48.4]} 9... Nc6 {[%clk
0:02:54.5]} 10. O-O {[%clk 0:02:46.2]} 10... h6 {[%clk 0:02:52.6]} 11. Bh4
{[%clk 0:02:46]} 11... g5 {[%clk 0:02:52.4]} 12. Bg3 {[%clk 0:02:45.2]} 12... e5
{[%clk 0:02:52.9]} 13. d5 {[%clk 0:02:35.9]} 13... Ne7 {[%clk 0:02:51.8]} 14. e4
{[%clk 0:02:36.3]} 14... a5 {[%clk 0:02:45.9]} 15. Nd2 {[%clk 0:02:33.1]} 15...
Ng6 {[%clk 0:02:42.8]} 16. Bg4 {[%clk 0:02:30.8]} 16... Nf6 {[%clk 0:02:41.8]}
17. Re1 {[%clk 0:02:08.5]} 17... Nf4 {[%clk 0:02:34]} 18. Nf1 {[%clk 0:02:03.5]}
18... Nxg4 {[%clk 0:01:54.7]} 19. hxg4 {[%clk 0:02:03.4]} 19... h5 {[%clk
0:01:55.1]} 20. gxh5 {[%clk 0:01:53.5]} 20... Bc8 {[%clk 0:01:53.8]} 21. Ne3
{[%clk 0:01:53.4]} 21... f6 {[%clk 0:01:39.2]} 22. Bxf4 {[%clk 0:01:48.8]} 22...
gxf4 {[%clk 0:01:34.8]} 23. Nf5 {[%clk 0:01:49]} 23... Bxf5 {[%clk 0:01:23.6]}
24. exf5 {[%clk 0:01:48.8]} 24... Kf7 {[%clk 0:01:16.6]} 25. h6 {[%clk
0:01:29.4]} 25... Bh8 {[%clk 0:01:15.4]} 26. Qh5+ {[%clk 0:01:28.2]} 26... Ke7
{[%clk 0:01:14.8]} 27. h7 {[%clk 0:01:23.7]} 27... Qe8 {[%clk 0:00:59.1]} 28.
Qxe8+ {[%clk 0:01:07]} 28... Raxe8 {[%clk 0:01:00]} 29. g4 {[%clk 0:01:03]}
29... fxg3 {[%clk 0:00:39.3]} 30. Kg2 {[%clk 0:00:58.2]} 30... Rf7 {[%clk
0:00:36.4]} 31. Rh1 {[%clk 0:00:57.7]} 31... gxf2 {[%clk 0:00:20.4]} 32. Kxf2
{[%clk 0:00:55.5]} 32... Kd7 {[%clk 0:00:21.3]} 33. Rag1 {[%clk 0:00:51]} 33...
Rg7 {[%clk 0:00:16.5]} 34. Rxg7+ {[%clk 0:00:44.3]} 34... Bxg7 {[%clk
0:00:17.4]} 35. Rg1 {[%clk 0:00:44.1]} 35... Bh8 {[%clk 0:00:14.8]} 36. Rg8
{[%clk 0:00:41.1]} 36... Ke7 {[%clk 0:00:13.9]} 37. Ne4 {[%clk 0:00:40.3]} 37...
Kf7 {[%clk 0:00:14.2]} 38. Rxe8 {[%clk 0:00:29.3]} 38... Kxe8 {[%clk 0:00:15.1]}
39. Ng3 {[%clk 0:00:29.5]} 39... Kd7 {[%clk 0:00:07.8]} 40. Ke3 {[%clk
0:00:26.8]} 40... c6 {[%clk 0:00:04.8]} 41. Ke4 {[%clk 0:00:25.2]} 41... b5
{[%clk 0:00:04.3]} 42. dxc6+ {[%clk 0:00:21.8]} 42... Kxc6 {[%clk 0:00:05.2]}
43. cxb5+ {[%clk 0:00:22.1]} 43... Kxb5 {[%clk 0:00:06.1]} 44. Kd5 {[%clk
0:00:22.2]} 44... Kb4 {[%clk 0:00:03.8]} 45. Kxd6 {[%clk 0:00:22.5]} 45... Kc4
{[%clk 0:00:04.7]} 46. Ke6 {[%clk 0:00:20.4]} 46... Kd3 {[%clk 0:00:04.8]} 47.
Kf7 {[%clk 0:00:20.8]} 47... e4 {[%clk 0:00:04.7]} 48. Kg8 {[%clk 0:00:20.4]}
1-0

[Event "Late-Titled-Tuesday-Blitz-October-24-2023"]
[Site "Chess.com"]
[Date "2023.10.24"]
[Round "10"]
[White "TigrVShlyape"]
[Black "Meri-Arabidze"]
[Result "1-0"]
[WhiteElo "2833"]
[BlackElo "2627"]
[TimeControl "180+1"]
[EndTime "15:56:15 PDT"]
[Termination "TigrVShlyape won by resignation"]

1. e4 {[%clk 0:02:54.9]} 1... c5 {[%clk 0:02:59.3]} 2. Nf3 {[%clk 0:02:53.9]}
2... e6 {[%clk 0:02:59.8]} 3. d4 {[%clk 0:02:53.3]} 3... cxd4 {[%clk 0:03:00.7]}
4. Nxd4 {[%clk 0:02:53.7]} 4... Nc6 {[%clk 0:03:01]} 5. Nc3 {[%clk 0:02:52.8]}
5... Qc7 {[%clk 0:03:01.4]} 6. Be3 {[%clk 0:02:51.1]} 6... a6 {[%clk 0:03:01.4]}
7. Qf3 {[%clk 0:02:51.4]} 7... Nf6 {[%clk 0:03:01]} 8. Qg3 {[%clk 0:02:50.4]}
8... Qxg3 {[%clk 0:02:57.8]} 9. hxg3 {[%clk 0:02:50.4]} 9... Bb4 {[%clk
0:02:50.4]} 10. f3 {[%clk 0:02:39.7]} 10... d5 {[%clk 0:02:41.9]} 11. Nxc6
{[%clk 0:02:34.5]} 11... bxc6 {[%clk 0:02:42.8]} 12. e5 {[%clk 0:02:33.5]} 12...
Nd7 {[%clk 0:02:43.3]} 13. f4 {[%clk 0:02:33.8]} 13... c5 {[%clk 0:02:40.2]} 14.
Bd2 {[%clk 0:02:33.3]} 14... Bb7 {[%clk 0:02:30.4]} 15. a3 {[%clk 0:01:58.7]}
15... Ba5 {[%clk 0:02:30.3]} 16. b4 {[%clk 0:01:38.3]} 16... Bd8 {[%clk
0:02:07.8]} 17. Na4 {[%clk 0:01:37.7]} 17... Be7 {[%clk 0:02:01.3]} 18. Be2
{[%clk 0:01:17.6]} 18... Bc6 {[%clk 0:01:47.2]} 19. Nxc5 {[%clk 0:01:11.3]}
19... Bxc5 {[%clk 0:01:35.5]} 20. bxc5 {[%clk 0:01:10.7]} 20... Nxc5 {[%clk
0:01:36.4]} 21. Be3 {[%clk 0:01:07.5]} 21... Ne4 {[%clk 0:01:35.7]} 22. Rh3
{[%clk 0:01:05]} 22... Bb5 {[%clk 0:01:30.4]} 23. Bd3 {[%clk 0:01:05.1]} 23...
Kd7 {[%clk 0:01:23.7]} 24. a4 {[%clk 0:01:04.7]} 24... Bc6 {[%clk 0:01:12.7]}
25. g4 {[%clk 0:00:53.5]} 25... h6 {[%clk 0:01:11.9]} 26. Bd4 {[%clk 0:00:51]}
26... Rhb8 {[%clk 0:00:59.2]} 27. a5 {[%clk 0:00:49.6]} 27... Rb4 {[%clk
0:00:52.3]} 28. c3 {[%clk 0:00:41.2]} 28... Rb2 {[%clk 0:00:52.2]} 29. Bxe4
{[%clk 0:00:23.6]} 29... dxe4 {[%clk 0:00:51.5]} 30. Kf1 {[%clk 0:00:22.9]}
30... e3 {[%clk 0:00:42.3]} 31. Rxe3 {[%clk 0:00:22.2]} 31... Bxg2+ {[%clk
0:00:42.2]} 32. Kg1 {[%clk 0:00:21.9]} 32... Bd5 {[%clk 0:00:43]} 33. c4 {[%clk
0:00:19.9]} 33... Bc6 {[%clk 0:00:20.4]} 34. Bxb2 {[%clk 0:00:19.3]} 34... Rb8
{[%clk 0:00:18.1]} 35. Ba3 {[%clk 0:00:18.8]} 35... h5 {[%clk 0:00:12.7]} 36.
gxh5 {[%clk 0:00:18.7]} 36... Rh8 {[%clk 0:00:12.2]} 37. Rd1+ {[%clk 0:00:17.8]}
37... Kc8 {[%clk 0:00:12.5]} 38. Rd6 {[%clk 0:00:17.6]} 38... Kc7 {[%clk
0:00:13]} 39. Rxc6+ {[%clk 0:00:16.5]} 39... Kxc6 {[%clk 0:00:13.4]} 40. Rh3
{[%clk 0:00:15.6]} 40... Rh6 {[%clk 0:00:12.2]} 41. Kg2 {[%clk 0:00:16]} 41...
f6 {[%clk 0:00:10.7]} 42. Bf8 {[%clk 0:00:14.7]} 42... Rh7 {[%clk 0:00:08.3]}
43. Kg3 {[%clk 0:00:13.8]} 43... f5 {[%clk 0:00:06.9]} 44. Kh4 {[%clk
0:00:13.6]} 44... Rh8 {[%clk 0:00:03.2]} 45. Bxg7 {[%clk 0:00:13.5]} 45... Rg8
{[%clk 0:00:03.6]} 46. h6 {[%clk 0:00:13.8]} 1-0